Cogmind - Beta 10.2 @@@ ROGUE MODE // 2020.12.29 @ 22:20:19 Player: CrossedViper Result: Destroyed by 8R-AWN with 8R-AWN's Boregun Performance ------------- Evolutions (0) 0 Regions Visited (3) 600 Robots Destroyed (28) 140 Value Destroyed (386) 386 Prototype IDs (27) 540 Alien Tech Used (0) 0 Bonus (-91) -91 TOTAL SCORE: 1575 Bonus ------- Aligned with FarCom 300 Friendly Fire -391 Cogmind --------- Core Integrity 0/250 Matter 122/300 Energy 238/250 System Corruption 0% Temperature Cool (0) Movement Treading (180) Ox1 Location -10/Exiles Parts ------- > --- POWER (1) -------- Ion Engine > --- PROPULSION (2) --- Light Treads Light Treads > --- UTILITY (2) ------ High-capacity Storage Unit > --- WEAPON (2) ------- Autogun Autogun > --- INVENTORY (12) --- Light Treads Makeshift Leg AWS/Thermal Light Assault Rifle Autogun Rocket Launcher Mining Claw Mining Claw Mining Claw Peak State ------------ > --- POWER ------------ Ion Engine > --- PROPULSION ------- Light Treads Light Treads > --- UTILITY ---------- High-capacity Storage Unit High-capacity Storage Unit > --- WEAPON ----------- Autogun Autogun > --- INVENTORY -------- Light Treads Light Treads Makeshift Leg High-capacity Storage Unit High-capacity Storage Unit Light Armor Plating Decoy Drone Bay EM Pulse Gun Beam Cannon Light Assault Rifle Autogun Autogun Rocket Launcher Mining Claw Mining Claw Mining Claw Explosive Trap Explosive Trap Explosive Trap [Rating: 13] Favorites ----------- Power Ion Engine Engine Ion Engine Propulsion Light Treads Treads Light Treads Leg Aluminum Leg Utility High-capacity Storage Unit Storage High-capacity Storage Unit Processor Visual Processing Unit Protection Light Armor Plating Weapon Autogun Energy Gun EM Pulse Gun Ballistic Gun Autogun Launcher Rocket Launcher Slashing Weapon Mining Claw Build | -11 -10 -10 -10 ------- Run | Scr Mat Min Exi Slots Evolved . | . . . . Power . | . . . . Propulsion . | . . . . Utility . | . . . . Weapon . | . . . . Parts Attached 18 | . 8 2 8 Power . | . . . . Engine . | . . . . Core . | . . . . Reactor . | . . . . Propulsion 5 | . 3 1 1 Treads 5 | . 3 1 1 Leg . | . . . . Wheel . | . . . . Hover . | . . . . Flight . | . . . . Utility 4 | . 3 . 1 Device . | . . . . Storage 2 | . 2 . . Processor 1 | . 1 . . Hackware . | . . . . Protection 1 | . . . 1 Artifact . | . . . . Weapon 9 | . 2 1 6 Energy Gun . | . . . . Energy Cannon . | . . . . Ballistic Gun 6 | . 2 . 4 Ballistic Cannon . | . . . . Launcher 1 | . . . 1 Special Weapon . | . . . . Impact Weapon . | . . . . Slashing Weapon 2 | . . 1 1 Piercing Weapon . | . . . . Special Melee Weapon . | . . . . Unidentified Prototypes . | . . . . Parts Lost 3 | . . . 3 Power . | . . . . Propulsion 1 | . . . 1 Utility 1 | . . . 1 Weapon 1 | . . . 1 Highest Loss Streak 3 | . . . 3 Average Slot Usage (%) 98 | . 95 100 99 Engine 14 | . 14 14 14 Treads 27 | . 26 28 28 Storage 25 | . 20 28 26 Processor 1 | . 3 . . Energy Gun 1 | . 3 . . Ballistic Gun 21 | . 24 25 14 Slashing Weapon 4 | . . 2 13 Naked Turns . | . . . . Heaviest Build 75 | 12 75 75 74 Greatest Support 40 | 20 40 40 40 Greatest Overweight (x) 1 | . 1 1 1 Average Overweight (x) . | . . 1 1 Largest Inventory Capacity 20 | . 20 20 20 Average Capacity 17 | . 12 20 19 Most Carried 20 | . 9 20 20 Average Carried 12 | . 6 14 17 Final Capacity 20 | 6 20 20 12 Final Carried 20 | 6 8 20 10 Class Distribution -------------------- 80% | Hauler-Mutant 19% | Mutant Dominant Class ---------------- Mutant | -10/Materials Hauler-Mutant | -10/Mines Hauler-Mutant | -10/Exiles Resources | -11 -10 -10 -10 ----------- Run | Scr Mat Min Exi Matter Collected 677 | 200 331 136 10 Remotely . | . . . . Salvage Created 944 | . 741 203 . Parts 66 | . 44 22 . Haulers Intercepted 2 | . 2 . . Recyclers Shooed 2 | . 2 . . Parts Field Recycled . | . . . . Retrieved Matter . | . . . . Parts Self-Destructed . | . . . . Prevented . | . . . . Kills | -11 -10 -10 -10 ------- Run | Scr Mat Min Exi Combat Hostiles Destroyed 14 | . 9 3 2 Guns 12 | . 9 3 . AOE 2 | . . . 2 Classes Destroyed 9 | . 7 1 1 Worker 5 | . 3 2 . Builder 2 | . 1 1 . Tunneler 1 | . . 1 . Hauler 2 | . 2 . . Recycler 2 | . 2 . . Watcher 3 | . 3 . . Swarmer 6 | . 3 3 . Grunt 6 | . 6 . . Assembled 2 | . . . 2 Thug 1 | . . 1 . Best Kill Streak 3 | . 3 3 2 Combat Bots Only 3 | . 3 3 2 Max Kills in Single Turn 2 | . 2 1 2 Gunslinging 1 | . 1 . . Exploded 2 | . . . 2 Melee . | . . . . Uniques/NPCs Destroyed . | . . . . Combat | -11 -10 -10 -10 -------- Run | Scr Mat Min Exi Damage Taken 1316 | . 437 102 777 Core 257 | . 52 19 186 Absorbed by Shields . | . . . . Core Remaining (%) 100 | 100 . . . Volleys Fired 78 | . 48 15 15 Largest 2 | . 2 2 2 Hottest 60 | . 60 46 46 Shots Fired 155 | . 96 30 29 Gun 154 | . 96 30 28 Cannon . | . . . . Launcher 1 | . . . 1 Special . | . . . . Kinetic 135 | . 77 30 28 Thermal . | . . . . Explosive 1 | . . . 1 Electromagnetic 19 | . 19 . . Robot Hit Streak 17 | . 12 4 17 Robot Miss Streak 3 | . 3 2 1 Penetration Max . | . . . . Secondary Targets 1 | . 1 . . Max Gunslinging Chain 1 | . 1 . . Shots Hit Robots 103 | . 59 16 28 Core Hits 45 | . 31 8 6 Critical Hits 1 | . . 1 . Critical Kills 1 | . . 1 . Critical Parts Destroyed . | . . . . Melee Attacks 3 | . . 2 1 Impact . | . . . . Slashing 3 | . . 2 1 Piercing . | . . . . Sneak Attacks 3 | . . 2 1 Combat Hostiles . | . . . . Follow-up Attacks . | . . . . Damage Inflicted 1723 | . 839 277 607 Guns 1305 | . 773 131 401 Cannons . | . . . . Explosions 197 | . 66 . 131 Melee 214 | . . 139 75 Ramming 7 | . . 7 . Kinetic 1106 | . 574 131 401 Thermal 66 | . 66 . . Explosive 131 | . . . 131 Electromagnetic 199 | . 199 . . Impact . | . . . . Slashing 214 | . . 139 75 Piercing . | . . . . Highest Corruption . | . . . . Average Corruption . | . . . . Corruption Purged . | . . . . Overload Shots . | . . . . Overflow Damage 57 | . . 33 24 Projectiles . | . . . . Explosions 24 | . . . 24 Melee 33 | . . 33 . Knockbacks . | . . . . Impact . | . . . . Kinetic . | . . . . Secondary . | . . . . Self-Inflicted Damage 72 | . 55 . 17 Shots 2 | . 1 . 1 Rammed 1 | . . 1 . Targets Rammed 1 | . . 1 . Kicked . | . . . . Crushed . | . . . . Highest Temperature 85 | . 85 12 12 Average Temperature 16 | . 21 5 7 Received Heat Transfer 167 | . 147 . 20 Siege Activations . | . . . . Robots Corrupted . | . . . . Combat Hostiles . | . . . . Parts Fried . | . . . . Impact Corruptions . | . . . . Robots Melted . | . . . . Combat Hostiles . | . . . . Parts Melted . | . . . . Heat Transferred 50 | . 50 . . Parts Sabotaged . | . . . . Parts Stolen . | . . . . Parts Stripped . | . . . . Power Chain Reactions 1 | . 1 . . Missiles Intercepted . | . . . . Alert | -11 -10 -10 -10 ------- Run | Scr Mat Min Exi Peak Influence 204 | . 204 74 . Initial 4 | . . 4 . Average 41 | . 58 25 . Maximum Alert Level 1 | . 1 . . Low Security (%) 96 | . 93 100 . Level 1 3 | . 6 . . Level 2 . | . . . . Level 3 . | . . . . Level 4 . | . . . . Level 5 . | . . . . High Security . | . . . . Max Security . | . . . . Squads Dispatched 1 | . 1 . . Investigation . | . . . . Extermination . | . . . . Reinforcement 1 | . 1 . . Assault . | . . . . Garrison . | . . . . Intercept . | . . . . Construction Impeded . | . . . . Haulers Reinforced . | . . . . Stealth | -11 -10 -10 -10 --------- Run | Scr Mat Min Exi Distress Signals 2 | . 2 . . Communications Jammed . | . . . . Distress Signals . | . . . . Times Spotted 26 | . 18 3 5 Peak Tracking Total 7 | . 4 3 7 Tactical Retreats . | . . . . Traps | -11 -10 -10 -10 ------- Run | Scr Mat Min Exi Traps Triggered 1 | . 1 . . Indirectly . | . . . . Trap Hack Attempts . | . . . . Triggered . | . . . . Disarmed . | . . . . Reprogrammed . | . . . . Reused 3 | . . . 3 Traps Extracted . | . . . . Installed 3 | . . . 3 Triggered . | . . . . Machines | -11 -10 -10 -10 ---------- Run | Scr Mat Min Exi Machines Disabled 3 | . 1 . 2 Max in Single Turn 1 | . 1 . 1 Machines Sabotaged . | . . . . Garrisons Compromised . | . . . . Overloaded Fab Kills . | . . . . Fab Network Shutdowns . | . . . . Hacking | -11 -10 -10 -10 --------- Run | Scr Mat Min Exi Machines Accessed 7 | . 4 1 2 Terminals 4 | . 4 . . Fabricators . | . . . . Repair Stations . | . . . . Recycling Units . | . . . . Scanalyzers . | . . . . Garrison Access . | . . . . Total Hacks 21 | . 18 1 2 Successful 16 | . 13 1 2 Failed 4 | . 4 . . Catastrophic . | . . . . Database Lockouts 1 | . 1 . . Manual 12 | . 11 . 1 Terminals 18 | . 18 . . Fabricators . | . . . . Repair Stations . | . . . . Recycling Units . | . . . . Scanalyzers . | . . . . Garrison Access . | . . . . Terminal Hacks 12 | . 9 1 2 Record 1 | . . . 1 Robot Analysis 2 | . 2 . . Prototype ID Bank 2 | . 2 . . Open Door 1 | . . 1 . Branch Access Points 1 | . 1 . . Alert Level 1 | . 1 . . Unreport Threat 1 | . 1 . . Dispatch Records 1 | . 1 . . Hauler Manifests 1 | . 1 . . EX-Prototype ID Bank 1 | . . . 1 Fabricator Hacks . | . . . . Repair Station Hacks . | . . . . Recycling Unit Hacks . | . . . . Scanalyzer . | . . . . Garrison Access Hacks . | . . . . Unauthorized Hacks 4 | . 4 . . Terminals 4 | . 4 . . Track 2 | . 2 . . Botnet 2 | . 2 . . Fabricators . | . . . . Repair Stations . | . . . . Recycling Units . | . . . . Scanalyzers . | . . . . Garrison Access . | . . . . Data Cores Recovered . | . . . . Used . | . . . . Hacking Detections 2 | . 2 . . Full Trace Events . | . . . . Feedback Events . | . . . . Feedback Blocked . | . . . . Robot Schematics Acquired . | . . . . Robots Built . | . . . . Matter . | . . . . Time . | . . . . Total Robot Build Rating . | . . . . Part Schematics Acquired . | . . . . Parts Built . | . . . . Matter . | . . . . Time . | . . . . Total Part Build Rating . | . . . . Parts Repaired . | . . . . Time . | . . . . Parts Recycled . | . . . . Recycled Matter . | . . . . Retrieved Matter . | . . . . Retrieved Components . | . . . . Parts Scanalyzed . | . . . . Part Schematics Acquired . | . . . . Parts Damaged . | . . . . Bothacking | -11 -10 -10 -10 ------------ Run | Scr Mat Min Exi Used RIF Installer . | . . . . Robots Hacked . | . . . . Non-combat . | . . . . Combat . | . . . . Robot Hacks Applied . | . . . . Relay Couplers Released . | . . . . Robots Rewired . | . . . . Allies Hacked . | . . . . Hacks Repelled . | . . . . Allies | -11 -10 -10 -10 -------- Run | Scr Mat Min Exi Total Allies 2 | . . 2 . Largest Group 2 | . . 2 1 Highest-Rated Group 45 | . . 45 26 Highest-Rated Ally 31 | . . 31 26 Total Orders . | . . . . Ally Attacks . | . . . . Total Damage . | . . . . Kills . | . . . . Allies Corrupted . | . . . . Allies Melted . | . . . . Intel | -11 -10 -10 -10 ------- Run | Scr Mat Min Exi Robot Analysis Total 2 | . 2 . . Derelict Logs Recovered 2 | . . 2 . Drone Launches . | . . . . Drone Recoveries . | . . . . Exploration | -11 -10 -10 -10 ------------- Run | Scr Mat Min Exi Turns Passed 3178 | . 1100 1152 926 Spaces Moved 1642 | 1 560 605 476 Core . | . . . . Treads 1603 | . 522 605 476 Legs 39 | 1 38 . . Wheels . | . . . . Hover . | . . . . Flight . | . . . . Fastest Speed 120 | 120 120 180 180 Average Speed 175 | 120 167 180 180 Slowest Speed 180 | 120 180 180 180 Overloaded Moves . | . . . . Propulsion Burnouts . | . . . . Robots Hopped . | . . . . Cave-ins Triggered . | . . . . Exploration Rate (%) 55 | 2 75 76 68 Regions Visited 3 Branch Regions 2 Pre-discovered Areas 3 | . . 2 1 Known Exits Taken 1 | . 1 . . Unknown Exits Taken 2 | 1 . 1 . Scrap Searched 1 | . . 1 . Spaces Dug . | . . . . Terrain Destroyed 15 | . 9 . 6 Melee . | . . . . Projectile . | . . . . AOE 15 | . 9 . 6 Terrain Rammed . | . . . . Walls Destroyed . | . . . . Machines Disabled . | . . . . Actions | -11 -10 -10 -10 --------- Run | Scr Mat Min Exi Total 1812 | . 648 639 525 Wait 9 | . 7 2 . Move 1639 | . 559 604 476 Hop . | . . . . Pick Up 36 | . 13 12 11 Fast Attach 2 | . 2 . . Attach 7 | . 4 . 3 Detach . | . . . . Swap 9 | . 2 2 5 Drop 25 | . 13 1 11 Fire 78 | . 48 15 15 Melee 3 | . . 2 1 Ram . | . . . . Kick . | . . . . Crush 1 | . . 1 . Escape Stasis . | . . . . Rewire . | . . . . Trap 3 | . . . 3 Miscellaneous . | . . . . Route ------- -11/Scrapyard -10/Materials (discovered 3 exits: [*Mat x2] / *Min) -10/Mines (discovered 3 exits: [*Mat x2] / *Exi) -10/Exiles (discovered 1 exit: [*Min]) History --------- Turn | Location | Event 1 | -11/Scrapyard | Discovered new exit (range 0) 1 | -11/Scrapyard | Entered Materials 282 | -10/Materials | Discovered new exit (range 13) 339 | -10/Materials | Build established: Mutant 613 | -10/Materials | Identified exit to Mines 613 | -10/Materials | Central database locked down 857 | -10/Materials | Build established: Hauler-Mutant 954 | -10/Materials | Discovered new exit (range 9) 1101 | -10/Materials | Entered Mines 1203 | -10/Mines | Discovered new exit (range 10) 1329 | -10/Mines | Learned location of 1 exit from Materials 1385 | -10/Mines | Joined a pair of Derelicts in attacking an 0b10 outpost 1411 | -10/Mines | Learned location of Zion (-6) 1540 | -10/Mines | Deemed a non-threat by the Exiles lab entrance 1540 | -10/Mines | Discovered new exit (range 5) 1589 | -10/Mines | Learned location of Storage (-7) 1669 | -10/Mines | Received a Rocket Launcher from a helpful Derelict 1751 | -10/Mines | Found a hidden stash of uninstalled traps 1764 | -10/Mines | Discovered new exit (range 10) 2040 | -10/Mines | Found the Drone Emporium 2050 | -10/Mines | Found Prototype Device 2253 | -10/Mines | Entered Exiles 2253 | -10/Exiles | Accompanied by 1 ally 2283 | -10/Exiles | Led the pair of lost Derelicts to a safe place 2465 | -10/Exiles | Met 8R-AWN 2494 | -10/Exiles | Met EX-HEX 2607 | -10/Exiles | Met EX-DEC 2830 | -10/Exiles | Met EX-BIN 2852 | -10/Exiles | Aligned with FarCom system 2854 | -10/Exiles | Given EX-Vault access code 2895 | -10/Exiles | Opened EX-Vault 2909 | -10/Exiles | Found AWS/Thermal 2948 | -10/Exiles | Warned to stay clear of 0b10 Research branches 3062 | -10/Exiles | Discovered new exit (range 15) 3133 | -10/Exiles | Attacked by the Exiles 3148 | -10/Exiles | Core integrity fell below 50% 3170 | -10/Exiles | Core integrity fell below 20% 3179 | -10/Exiles | Destroyed by 8R-AWN with 8R-AWN's Boregun Last Messages --------------- 03160_ Penetrated by HV Slug. 03160_ HV Slug penetrates Earth. 03160_ Penetrated by HV Slug. 03160_ HV Slug penetrates Earth. 03163_ Penetrated by HV Slug. 03163_ Critical hit. 03163_ Lgt. Treads destroyed. 03163_ HV Slug penetrates Earth. 03163_ Penetrated by HV Slug. 03163_ HV Slug penetrates Earth. 03165_ HV Slug penetrates Wall. 03165_ Penetrated by HV Slug. 03165_ HV Slug penetrates Earth. 03167_ Penetrated by HV Slug. 03167_ HV Slug penetrates Earth. 03167_ Penetrated by HV Slug. 03176_ Autogun destroyed. 03179_ The unstable cave ceiling collapses. 03179_ Destroyed Prototype Protection. 03179_ Penetrated by HV Slug. Map ----- +----------------------------------------------------+ | """#?????????????????????????????????????????????? | | """#?????????????????????????????????????????????? | | """#?????????????????????????????????????????????? | | """#?????????????????????????????????????????????? | | """#?????????????????????????????????????????????? | | """#?????????????????????????????????????????????? | | """#?????????????????????????????????????????????? | | """#?????????????????????????????????????????????? | | """#?????????????????????????????????????????????? | | """#?????????????????????????????????????????????? | | """"????????????????????? ???????????????????????? | | """#????????????????????? ???????????????????????? | | """"????????????????????? ???????????????????????? | | #????????????????????? ???????????????????????? | | """#????????????????????? ???????????????????????? | | ####????????????????????? ??????????????????????## | | ????????????????????????? ?????????????????????# | | ????????????????????????# #???????????????????# | | ????????????????????????# #??????????????????? < | | ##########?????????????? #??????????????????? | | """""""""##?????????????# #??????????????????? | | " """ """"##????????????# #?????????????????## # | | "" " #????????????# #????????????????## # | | " """#????????????# #????????????????# | | " "#??????????### ###??????????????# | | " "##?????????# @ #?????????????## | | ""###??????# g #????????????## ! #? | | """#??????# ##????????????# #? | | "#????## ###????????###!!! !##? | | ##???# a ########## !] #?? | | ##?## #""""## ##?? | | ### ##?? | | ## #?? | | #### ##? | | ""#?#"""""#### ## | | % " "##?#######??#### [ | | ######??????????????##### | | #???????????????????????### | | " ##??????????????????????????### | | """ ^ ^ ""#?????????????????????????????### | | ""#" "##??????????????????????????????#" | | """##"""""""##???????????????????????????????#### | | """###########???????????????????????????????????# | | ####?????????????????????????????????????????????# | | ?????????????????????????????????????????????????? | | ?????????????????????????????????????????????????? | | ?????????????????????????????????????????????????? | | ?????????????????????????????????????????????????? | | ?????????????????????????????????????????????????? | | ?????????????????????????????????????????????????? | +----------------------------------------------------+ Best States ------------- Heat Dissipation 25 Energy Generation 10 Energy Capacity 250 Matter Stores 300 Matter Capacity 300 Sight Range 18 Terrain Scan Density 10 Armor Coverage 150 Evasion (%) 40 Recoil Reduction 2 Item Schematics ----------------- None Robot Schematics ------------------ None Fabricated ------------ Nothing Alien Tech Used ----------------- None Achievements -------------- None Challenges ------------ None Game ------ Seed HellfirePrecisionBeamcaster Manual? 0 Play Time 00:14:24 Cumulative 194.7 hours Start 2020.12.29 @ 21:54:09 End 2020.12.29 @ 22:20:19 Sessions 1 Manual Loads 0 Difficulty Rogue Special Mode None Game No. 188 Rogue 181 Adventurer 0 Explorer 7 Win Type - Total 4 Types 0/0/4/0/0/0/0/0/0 Lore% 65 Gallery% 89 Achievement% 66 Wizard Run 0 Options --------- ASCII 0 Keyboard 0 Movement Mouse Keybinds 0 Fullscreen 1 Font 18/X11 Map View 76x50 Tactical HUD 1 Map Filters NONE Filters NONE Steam 1 RUN: f8e5c53f-3cfa-4cf3-bce0-ffa1d9ae5d17